fUST/lending_fUST_20240617
["ID","MTS","AMOUNT","RATE_DAILY","PERIOD"]
[329668902,1718556650193,-500.0,0.00014116,2]
[329668904,1718556650237,-500.0,0.00014116,2]
[329668907,1718556650273,-552.09,0.00014116,2]
[329668908,1718556650285,-1114.45,0.00014116,2]
[329668910,1718556650297,-869.01,0.00014116,2]
[329668913,1718556650363,-469.96286336,0.00014116,2]
[329668915,1718556650376,-500.0,0.00014116,2]
[329668916,1718556650449,-500.0,0.00014116,2]
[329668918,1718556650460,-500.0,0.00014116,2]
[329668920,1718556650479,-500.0,0.00014116,2]
[329668922,1718556650492,-500.0,0.00014116,2]
[329668924,1718556650526,-5232.09,0.00014116,2]
[329668926,1718556650549,-546.52,0.00014116,2]
[329668928,1718556650590,-953.8,0.00014116,2]
[329668930,1718556650653,-2006.87,0.00014116,2]
[329668931,1718556650714,-500.0,0.00014116,2]
[329668933,1718556650727,-500.0,0.00014116,2]
[329668935,1718556650787,-214.8496273,0.00014116,2]
[329668937,1718556650814,-500.0,0.00014116,2]
[329668939,1718556650853,-500.0,0.00014116,2]
[329668940,1718556650924,-500.0,0.00014116,2]
[329668942,1718556650939,-500.0,0.00014116,2]
[329668945,1718556650952,-5229.99,0.00014116,2]
[329668947,1718556650990,-500.0,0.00014116,2]
[329668949,1718556651004,-500.0,0.00014116,2]
[329668951,1718556651041,-500.0,0.00014116,2]
[329668953,1718556651053,-326.52014358,0.00014116,2]
[329668956,1718556651124,-520.07627658,0.00014116,2]
[329668959,1718556651164,-500.0,0.00014116,2]
[329668961,1718556651200,-500.0,0.00014116,2]
[329668962,1718556651233,-500.0,0.00014116,2]
[329668964,1718556651259,-1213.08,0.00014116,2]
[329668966,1718556651271,-500.0,0.00014116,2]
[329668969,1718556651300,-5519.88,0.00014116,2]
[329668970,1718556651333,-3292.04,0.00014116,2]
[329668971,1718556651351,-552.86,0.00014116,2]
[329668973,1718556651417,-728.43,0.00014116,2]
[329668975,1718556651441,-500.0,0.00014116,2]
[329668976,1718556651467,-500.0,0.00014116,2]
[329668978,1718556651496,-500.0,0.00014116,2]
[329668981,1718556651538,-500.0,0.00014116,2]
[329668983,1718556651604,-539.57,0.00014116,2]
[329668985,1718556651622,-500.0,0.00014116,2]
[329668987,1718556651663,-500.0,0.00014116,2]
[329668989,1718556651681,-500.0,0.00014116,2]
[329668991,1718556651701,-501.73618438,0.00014116,2]
[329668992,1718556651721,-2040.58790857,0.00014116,2]
[329668998,1718556651941,-155.25209143,0.00014116,2]
[329669001,1718556651969,-500.0,0.00014116,2]
[329669002,1718556651993,-500.0,0.00014116,2]
[329669003,1718556652008,-500.0,0.00014116,2]
[329669006,1718556652040,-500.0,0.00014116,2]
[329669008,1718556652058,-1781.95,0.00014116,2]
[329669011,1718556652104,-521.53,0.00014116,2]
[329669014,1718556652137,-500.0,0.00014116,2]
[329669017,1718556652197,-500.0,0.00014117,2]
[329669020,1718556652255,-500.0,0.00014117,2]
[329669022,1718556652288,-500.0,0.00014117,2]
[329669025,1718556652354,-500.0,0.00014117,2]
[329669026,1718556652399,-500.0,0.00014117,2]
[329669029,1718556652424,-500.0,0.00014117,2]
[329669031,1718556652445,-500.0,0.00014117,2]
[329669032,1718556652469,-500.0,0.00014117,2]
[329669035,1718556652501,-500.0,0.00014117,2]
[329669037,1718556652519,-509.46178003,0.00014117,2]
[329669038,1718556652548,-500.0,0.00014117,2]
[329669040,1718556652560,-319.30675189,0.00014117,2]
[329669043,1718556652622,-500.0,0.00014117,2]
[329669045,1718556652635,-500.0,0.00014117,2]
[329669047,1718556652688,-761.78,0.00014117,2]
[329669048,1718556652731,-500.0,0.00014117,2]
[329669050,1718556652746,-500.0,0.00014117,2]
[329669052,1718556652783,-500.0,0.00014117,2]
[329669055,1718556652825,-500.0,0.00014117,2]
[329669057,1718556652840,-500.0,0.00014117,2]
[329669059,1718556652868,-500.0,0.00014117,2]
[329669062,1718556652910,-500.0,0.00014117,2]
[329669064,1718556652944,-507.07245,0.00014117,2]
[329669067,1718556653004,-500.0,0.00014117,2]
[329669068,1718556653042,-597.22,0.00014117,2]
[329669070,1718556653056,-500.0,0.00014117,2]
[329669073,1718556653094,-500.0,0.00014117,2]
[329669074,1718556653119,-500.0,0.00014117,2]
[329669076,1718556653133,-500.0,0.00014117,2]
[329669078,1718556653152,-500.0,0.00014117,2]
[329669080,1718556653164,-500.0,0.00014117,2]
[329669082,1718556653178,-500.0,0.00014117,2]
[329669084,1718556653188,-268.16710052,0.00014117,2]
[329669086,1718556653199,-500.0,0.00014117,4]
[329669095,1718556653349,-250.0,0.00014117,2]
[329669096,1718556653364,-500.0,0.00014117,2]
[329669098,1718556653375,-390.45258739,0.00014117,2]
[329669101,1718556653420,-500.0,0.00014117,2]
[329669102,1718556653432,-255.34325903,0.00014117,2]
[329669105,1718556653451,-500.0,0.00014117,2]
[329669106,1718556653465,-500.0,0.00014117,2]
[329669108,1718556653491,-500.0,0.00014117,2]
[329669109,1718556653502,-648.39355605,0.00014117,2]
[329669111,1718556653515,-506.03558681,0.00014117,2]
[329669112,1718556653535,-500.0,0.00014117,2]
[329669115,1718556653552,-500.0,0.00014117,2]
[329669119,1718556653604,-500.0,0.00014117,2]
[329669121,1718556653628,-454.15113139,0.00014117,2]
[329669122,1718556653639,-500.0,0.00014117,2]
[329669124,1718556653650,-528.72821766,0.00014117,2]
[329669126,1718556653670,-500.0,0.00014117,2]
[329669128,1718556653685,-500.0,0.00014117,2]
[329669129,1718556653707,-500.0,0.00014117,2]
[329669130,1718556653719,-500.0,0.00014117,2]
[329669131,1718556653732,-515.62887072,0.00014117,2]
[329669132,1718556653743,-500.0,0.00014117,2]
[329669133,1718556653754,-500.0,0.00014117,2]
[329669134,1718556653765,-5.44019552,0.00014117,2]
[329669136,1718556653808,-494.55980448,0.00014117,2]
[329669137,1718556653837,-500.0,0.00014117,2]
[329669139,1718556653865,-500.0,0.00014117,2]
[329669141,1718556653882,-500.0,0.00014117,2]
[329669145,1718556653940,-502.10056206,0.00014117,2]
[329669146,1718556653972,-500.0,0.00014117,2]
[329669148,1718556653984,-504.8484196,0.00014117,2]
[329669149,1718556654000,-510.64483731,0.00014117,2]
[329669151,1718556654012,-503.2236552,0.00014117,2]
[329669152,1718556654025,-500.0,0.00014117,2]
[329669154,1718556654042,-500.0,0.00014117,2]
[329669155,1718556654060,-500.28698375,0.00014117,2]
[329669157,1718556654085,-500.0,0.00014117,2]
[329669158,1718556654115,-500.0,0.00014117,2]
[329669159,1718556654128,-259.39180364,0.00014117,2]
[329669161,1718556654153,-500.0,0.00014117,2]
[329669163,1718556654172,-500.0,0.00014117,2]
[329669164,1718556654216,-500.0,0.00014117,2]
[329669166,1718556654228,-505.07086823,0.00014117,2]
[329669168,1718556654241,-505.69968282,0.00014117,2]
[329669170,1718556654261,-500.0,0.00014117,2]
[329669172,1718556654274,-500.0,0.00014117,2]
[329669175,1718556654324,-500.0,0.00014117,2]
[329669177,1718556654351,-505.55373611,0.00014117,2]
[329669179,1718556654366,-500.0,0.00014117,2]
[329669181,1718556654416,-500.0,0.00014117,2]
[329669182,1718556654428,-500.0,0.00014117,2]
[329669184,1718556654440,-500.0,0.00014117,2]
[329669186,1718556654452,-500.0,0.00014117,2]
[329669189,1718556654472,-500.0,0.00014117,2]
[329669191,1718556654493,-288.82114344,0.00014389,2]
[329669192,1718556654510,-500.0,0.00014389,2]
[329669194,1718556654522,-1331.42,0.00014389,2]
[329669196,1718556654536,-500.0,0.00014389,2]
[329669198,1718556654548,-500.0,0.00014389,2]
[329669200,1718556654562,-500.0,0.00014389,2]
[329669202,1718556654578,-583.25592825,0.00014389,2]
[329669204,1718556654605,-500.0,0.00014389,2]
[329669206,1718556654618,-538.33453105,0.00014389,2]
[329669209,1718556654635,-4398.28,0.00014389,2]
[329669211,1718556654669,-500.0,0.00014389,2]
[329669214,1718556654705,-500.0,0.00014389,2]
[329669216,1718556654744,-500.0,0.00014389,2]
[329669219,1718556654787,-500.0,0.00014389,2]
[329669221,1718556654806,-500.0,0.00014389,2]
[329669223,1718556654840,-500.0,0.00014389,2]
[329669226,1718556654883,-500.0,0.00014389,2]
[329669228,1718556654902,-500.0,0.00014389,2]
[329669230,1718556654914,-500.0,0.00014389,2]
[329669232,1718556654930,-500.0,0.00014389,2]
[329669234,1718556654955,-500.0,0.00014389,2]
[329669236,1718556654992,-500.0,0.00014389,2]
[329669238,1718556655008,-500.0,0.0001439,2]
[329669241,1718556655038,-500.0,0.0001439,2]
[329669243,1718556655057,-500.0,0.0001439,2]
[329669245,1718556655089,-505.97,0.0001439,2]
[329669248,1718556655128,-500.0,0.0001439,2]
[329669249,1718556655141,-500.0,0.0001439,2]
[329669252,1718556655157,-500.0,0.0001439,2]
[329669254,1718556655178,-500.0,0.0001439,2]
[329669257,1718556655202,-500.0,0.0001439,2]
[329669259,1718556655221,-500.0,0.0001439,2]
[329669260,1718556655234,-861.56,0.0001439,2]
[329669262,1718556655270,-500.0,0.0001439,2]
[329669264,1718556655297,-550.51,0.0001439,2]
[329669265,1718556655309,-500.0,0.0001439,2]
[329669267,1718556655321,-500.0,0.0001439,2]
[329669268,1718556655336,-500.0,0.0001439,2]
[329669270,1718556655356,-500.0,0.0001439,2]
[329669271,1718556655378,-500.0,0.0001439,2]
[329669273,1718556655400,-500.0,0.0001439,2]
[329669275,1718556655421,-161.00519817,0.0001439,2]
[329669277,1718556655451,-356.05714845,0.0001439,2]
[329669280,1718556655563,-214.11285155,0.0001439,2]
[329669281,1718556655581,-500.0,0.0001439,2]
[329669284,1718556655598,-500.0,0.0001439,2]
[329669286,1718556655630,-500.0,0.0001439,2]
[329669288,1718556655677,-500.0,0.0001439,2]
[329669291,1718556655722,-780.66,0.0001439,2]
[329669295,1718556655776,-1349.87,0.0001439,2]
[329669298,1718556655808,-500.0,0.0001439,2]
[329669300,1718556655822,-500.0,0.0001439,2]
[329669301,1718556655836,-1331.42,0.0001439,2]
[329669304,1718556655871,-1331.42,0.0001439,2]
[329669305,1718556655888,-552.09,0.0001439,2]
[329669307,1718556655903,-1114.45,0.0001439,2]
[329669309,1718556655924,-869.01,0.0001439,2]
[329669311,1718556655952,-500.0,0.0001439,2]
[329669312,1718556655967,-500.0,0.0001439,2]
[329669314,1718556655981,-500.0,0.0001439,2]
[329669316,1718556656004,-401.07714844,0.0001439,2]
[329669385,1718556657666,300.0,0.00023,30]
[329669547,1718556669578,300.0,0.00023,30]
[329669548,1718556683543,300.0,0.00023,30]
[329669549,1718556690713,300.0,0.00023,30]
[329669550,1718556716506,210.0,0.00023,30]
[329669551,1718556782221,211.525,0.00023,30]
[329669552,1718556916814,151.00151002,0.00019083,30]
[329669553,1718556917042,151.00151002,0.00018701,120]
[329669554,1718556936911,1000.0,0.00014,5]
[329669555,1718557226078,17923.0,0.000236,120]
[329669558,1718557429828,1160.0,0.00023,30]
[329669899,1718557835314,-212.05995423,0.00014013,2]
[329669900,1718557835334,-212.05995422,0.00014015,2]
[329669901,1718557835346,-155.29234424,0.00014111,2]
[329669902,1718557835358,-3073.20875241,0.00014111,2]
[329669903,1718557835370,-720.00033382,0.00014112,2]
[329669915,1718557841311,-3375.38666656,0.00014112,2]
[329669917,1718557841326,-1318.15855002,0.00014112,2]
[329669919,1718557841348,-500.0,0.00014112,2]
[329669920,1718557841363,-500.0,0.00014112,2]
[329669922,1718557841394,-500.0,0.00014112,2]
[329669923,1718557841424,-502.79189169,0.00014113,2]
[329669924,1718557841456,-939.55475134,0.00014113,2]
[329669925,1718557841470,-406.94524866,0.00014113,2]
[329669926,1718557841529,-315.54670359,0.00014113,2]
[329669927,1718557841561,-134.75800825,0.00014113,2]
[329669943,1718557849160,24544.2480571,0.00023,30]
[329669944,1718557850001,-182.798643,0.00014113,2]
[329669945,1718557850013,-765.44214177,0.00014113,2]
[329669946,1718557850050,-1282.24587467,0.00014113,2]
[329669947,1718557850110,-2260.61257325,0.00014113,2]
[329669948,1718557850121,-272.44132449,0.00014113,2]
[329669949,1718557850132,-500.0,0.00014113,2]
[329669950,1718557850143,-501.54,0.00014113,2]
[329669951,1718557850169,-7212.11,0.00014113,2]
[329669952,1718557850179,-500.0,0.00014113,2]
[329669953,1718557850227,-1272.58,0.00014113,2]
[329669954,1718557850276,-3364.15,0.00014113,2]
[329669955,1718557850289,-500.0,0.00014113,2]
[329669956,1718557850299,-500.0,0.00014113,2]
[329669957,1718557850321,-500.0,0.00014113,2]
[329669958,1718557850370,-500.0,0.00014113,2]
[329669959,1718557850382,-500.0,0.00014113,2]
[329669960,1718557850400,-4789.06,0.00014113,2]
[329669961,1718557850413,-2299.45,0.00014113,2]
[329669962,1718557850430,-500.0,0.00014113,2]
[329669963,1718557850465,-500.0,0.00014113,2]
[329669964,1718557850476,-500.0,0.00014113,2]
[329669965,1718557850487,-1716.4,0.00014113,2]
[329669966,1718557850498,-500.0,0.00014113,2]
[329669967,1718557850510,-500.0,0.00014113,2]
[329669968,1718557850522,-879.93,0.00014113,2]
[329669969,1718557850534,-500.0,0.00014113,2]
[329669970,1718557850545,-500.0,0.00014113,2]
[329669971,1718557850556,-500.0,0.00014113,2]
[329669972,1718557850567,-500.0,0.00014113,2]
[329669973,1718557850591,-500.0,0.00014113,2]
[329669974,1718557850601,-500.0,0.00014113,2]
[329669975,1718557850618,-1158.21,0.00014113,2]
[329669976,1718557850642,-1158.21,0.00014113,2]
[329669977,1718557850657,-500.0,0.00014113,2]
[329669978,1718557850673,-500.0,0.00014113,2]
[329669979,1718557850688,-569.95,0.00014113,2]
[329669980,1718557850712,-2018.29,0.00014113,2]
[329669981,1718557850725,-500.0,0.00014113,2]
[329669982,1718557850741,-1084.08,0.00014113,2]
[329669983,1718557850754,-5196.32,0.00014113,2]
[329669984,1718557850766,-500.0,0.00014113,2]
[329669985,1718557850778,-952.49,0.00014113,2]
[329669986,1718557850792,-7458.33268757,0.00014114,2]
[329669987,1718557850803,-500.0,0.00014114,2]
[329669988,1718557850818,-500.0,0.00014114,2]
[329669989,1718557850840,-500.0,0.00014114,2]
[329669990,1718557850880,-500.0,0.00014114,2]
[329669991,1718557850894,-500.0,0.00014114,2]
[329669992,1718557850907,-500.0,0.00014114,2]
[329669993,1718557850921,-500.0,0.00014114,2]
[329669994,1718557850932,-500.0,0.00014114,2]
[329669995,1718557850964,-500.0,0.00014114,2]
[329669996,1718557850980,-500.0,0.00014114,2]
[329669997,1718557850996,-500.0,0.00014114,2]
[329669998,1718557851017,-500.0,0.00014114,2]
[329669999,1718557851049,-395.63674927,0.00014114,2]
[329670000,1718557851061,-500.0,0.00014114,2]
[329670001,1718557851072,-403.61672644,0.00014114,2]
[329670002,1718557851085,-500.0,0.00014114,2]
[329670003,1718557851098,-500.0,0.00014114,2]
[329670004,1718557851112,-500.0,0.00014114,2]
[329670005,1718557851247,-500.0,0.00014114,2]
[329670006,1718557851258,-500.0,0.00014114,2]
[329670007,1718557851273,-500.0,0.00014114,2]
[329670008,1718557851292,-500.0,0.00014114,2]
[329670009,1718557851326,-500.0,0.00014114,2]
[329670010,1718557851389,-500.0,0.00014114,2]
[329670011,1718557851401,-500.0,0.00014114,2]
[329670012,1718557851414,-500.0,0.00014114,2]
[329670013,1718557851433,-502.17334438,0.00014114,2]
[329670014,1718557851445,-500.0,0.00014114,2]
[329670015,1718557851460,-500.0,0.00014114,2]
[329670016,1718557851479,-500.0,0.00014114,2]
[329670017,1718557851491,-500.0,0.00014114,2]
[329670018,1718557851502,-500.0,0.00014114,2]
[329670019,1718557851513,-500.0,0.00014114,2]
[329670020,1718557851526,-500.0,0.00014114,2]
[329670021,1718557851540,-557.94,0.00014114,2]
[329670022,1718557851575,-500.0,0.00014114,2]
[329670023,1718557851593,-500.0,0.00014114,2]
[329670024,1718557851607,-595.78227432,0.00014114,2]
[329670025,1718557851628,-500.0,0.00014114,2]
[329670026,1718557851640,-500.0,0.00014114,2]
[329670027,1718557851651,-500.0,0.00014114,2]
[329670028,1718557851661,-500.0,0.00014114,2]
[329670029,1718557851671,-852.27,0.00014114,2]
[329670030,1718557851683,-500.0,0.00014114,2]
[329670031,1718557851694,-500.0,0.00014114,2]
[329670032,1718557851705,-500.0,0.00014114,2]
[329670033,1718557851717,-500.0,0.00014114,2]
[329670034,1718557851728,-500.0,0.00014114,2]
[329670035,1718557851742,-500.0,0.00014114,2]
[329670036,1718557851753,-500.0,0.00014114,2]
[329670037,1718557851766,-500.0,0.00014114,2]
[329670038,1718557851776,-500.0,0.00014114,2]
[329670039,1718557851788,-500.0,0.00014114,2]
[329670040,1718557851801,-500.0,0.00014114,2]
[329670041,1718557851817,-500.0,0.00014114,2]
[329670042,1718557851841,-500.0,0.00014114,2]
[329670043,1718557851865,-369.51,0.00014114,2]
[329670044,1718557851885,-500.0,0.00014114,2]
[329670045,1718557851913,-647.06983541,0.00014114,2]
[329670046,1718557851926,-500.0,0.00014114,2]
[329670047,1718557851937,-500.0,0.00014114,2]
[329670048,1718557851964,-500.0,0.00014114,2]
[329670049,1718557852007,-500.0,0.00014114,2]
[329670050,1718557852024,-500.0,0.00014114,2]
[329670051,1718557852036,-430.13563782,0.00014114,2]
[329670052,1718557852147,-69.86436218,0.00014114,2]
[329670053,1718557852160,-500.0,0.00014114,2]
[329670055,1718557852176,-500.0,0.00014114,2]
[329670056,1718557852189,-500.0,0.00014114,2]
[329670058,1718557852244,-155.67886372,0.00014114,2]
[329670059,1718557852255,-500.0,0.00014114,2]
[329670061,1718557852297,-500.0,0.00014114,2]
[329670062,1718557852316,-784.28,0.00014114,2]
[329670064,1718557852346,-500.0,0.00014114,2]
[329670066,1718557852369,-503.87867465,0.00014114,2]
[329670068,1718557852408,-500.0,0.00014114,2]
[329670069,1718557852437,-1265.68,0.00014114,2]
[329670071,1718557852448,-502.93903504,0.00014114,2]
[329670072,1718557852473,-500.0,0.00014114,2]
[329670073,1718557852490,-500.0,0.00014114,2]
[329670074,1718557852507,-500.0,0.00014114,2]
[329670075,1718557852524,-500.0,0.00014114,2]
[329670076,1718557852540,-5662.95,0.00014114,2]
[329670078,1718557852553,-500.0,0.00014114,2]
[329670080,1718557852576,-500.0,0.00014114,2]
[329670081,1718557852593,-500.0,0.00014114,2]
[329670082,1718557852605,-500.0,0.00014114,2]
[329670084,1718557852621,-504.16302395,0.00014114,2]
[329670086,1718557852636,-503.73013741,0.00014114,2]
[329670088,1718557852691,-84.48651648,0.00014114,2]
[329670090,1718557852708,-500.0,0.00014114,2]
[329670091,1718557852742,-500.0,0.00014114,2]
[329670092,1718557852757,-500.0,0.00014114,2]
[329670093,1718557852780,-587.51633867,0.00014114,2]
[329670095,1718557852796,-500.0,0.00014114,2]
[329670096,1718557852810,-500.0,0.00014114,2]
[329670098,1718557852831,-500.0,0.00014114,2]
[329670099,1718557852868,-249.04097137,0.00014114,2]
[329670101,1718557852887,-500.0,0.00014114,2]
[329670102,1718557852902,-1561.08,0.00014114,2]
[329670103,1718557852921,-500.0,0.00014114,2]
[329670104,1718557852938,-500.0,0.00014114,2]
[329670106,1718557852954,-500.0,0.00014114,2]
[329670107,1718557852968,-586.25,0.00014114,2]
[329670108,1718557852980,-500.0,0.00014114,2]
[329670109,1718557852998,-500.0,0.00014114,2]
[329670110,1718557853021,-647.2507586,0.00014114,2]
[329670111,1718557853041,-500.0,0.00014114,2]
[329670112,1718557853054,-500.0,0.00014114,2]
[329670113,1718557853075,-500.0,0.00014114,2]
[329670114,1718557853097,-500.0,0.00014114,2]
[329670115,1718557853119,-500.0,0.00014114,2]
[329670116,1718557853138,-500.0,0.00014114,2]
[329670117,1718557853149,-579.35301352,0.00014114,2]
[329670118,1718557853167,-305.36070266,0.00014114,2]
[329670119,1718557853179,-500.0,0.00014114,2]
[329670120,1718557853201,-500.0,0.00014114,2]
[329670121,1718557853230,-500.0,0.00014114,2]
[329670122,1718557853249,-500.0,0.00014114,2]
[329670123,1718557853260,-550.66,0.00014114,2]
[329670124,1718557853275,-509.48965602,0.00014114,2]
[329670125,1718557853290,-500.0,0.00014114,2]
[329670126,1718557853322,-500.0,0.00014114,2]
[329670127,1718557853355,-500.0,0.00014114,2]
[329670128,1718557853374,-500.0,0.00014114,2]
[329670129,1718557853401,-500.0,0.00014114,2]
[329670130,1718557853414,-500.0,0.00014114,2]
[329670131,1718557853426,-500.0,0.00014114,2]
[329670132,1718557853438,-1158.21,0.00014114,2]
[329670133,1718557853460,-1158.21,0.00014114,2]
[329670134,1718557853477,-500.0,0.00014114,2]
[329670135,1718557853488,-500.0,0.00014114,2]
[329670136,1718557853528,-500.0,0.00014114,2]
[329670137,1718557853554,-500.0,0.00014114,2]
[329670138,1718557853569,-500.0,0.00014114,2]
[329670139,1718557853596,-634.84,0.00014114,2]
[329670140,1718557853610,-721.59,0.00014114,2]
[329670141,1718557853625,-500.0,0.00014114,2]
[329670142,1718557853646,-500.0,0.00014114,2]
[329670143,1718557853659,-500.0,0.00014114,2]
[329670144,1718557853672,-325.76687101,0.00014114,2]
[329670145,1718557853688,-174.23312899,0.00014114,2]
[329670146,1718557853700,-515.12525992,0.00014114,2]
[329670147,1718557853712,-287.28288493,0.00014114,2]
[329670148,1718557860695,-3073.20875241,0.00014113,2]
[329670149,1718557860707,-500.0,0.00014113,2]
[329670150,1718557860718,-500.0,0.00014113,2]
[329670151,1718557860734,-500.0,0.00014113,2]
[329670152,1718557860752,-500.0,0.00014113,2]
[329670153,1718557860769,-212.71711507,0.00014114,2]
[329670154,1718557860791,-301.23189197,0.00014114,2]
[329670155,1718557860802,-500.0,0.00014114,2]
[329670156,1718557860814,-500.0,0.00014114,2]
[329670157,1718557860837,-500.0,0.00014115,4]
[329670158,1718557860850,-500.0,0.00014115,2]
[329670159,1718557860871,-500.0,0.00014115,2]
[329670160,1718557860888,-250.0,0.00014115,2]
[329670161,1718557860926,-500.0,0.00014115,2]
[329670162,1718557860951,-542.24654691,0.00014115,2]
[329670163,1718557860978,-500.0,0.00014115,2]
[329670164,1718557860992,-500.0,0.00014115,2]
[329670165,1718557861023,-583.71942751,0.00014115,2]
[329670166,1718557861038,-500.0,0.00014115,2]
[329670167,1718557861060,-500.0,0.00014115,2]
[329670168,1718557861074,-510.2434495,0.00014115,2]
[329670169,1718557861086,-500.0,0.00014115,2]
[329670170,1718557861104,-500.0,0.00014115,2]
[329670171,1718557861116,-500.0,0.00014115,2]
[329670172,1718557861136,-500.0,0.00014115,2]
[329670173,1718557861147,-282.64365373,0.00014115,2]
[329670174,1718557861159,-500.0,0.00014115,2]
[329670175,1718557861172,-500.0,0.00014115,2]
[329670176,1718557861203,-500.07468102,0.00014115,2]
[329670177,1718557861251,-500.0,0.00014115,2]
[329670178,1718557861281,-500.0,0.00014115,2]
[329670179,1718557861297,-500.0,0.00014115,2]
[329670180,1718557861320,-511.82330992,0.00014115,2]
[329670181,1718557861339,-500.0,0.00014115,2]
[329670182,1718557861352,-500.0,0.00014115,2]
[329670183,1718557861367,-511.4968587,0.00014115,2]
[329670184,1718557861385,-500.0,0.00014115,2]
[329670185,1718557861416,-500.0,0.00014115,2]
[329670186,1718557861429,-504.0,0.00014115,2]
[329670187,1718557861488,-500.0,0.00014115,2]
[329670188,1718557861516,-500.0,0.00014115,2]
[329670189,1718557861529,-500.0,0.00014115,2]
[329670190,1718557861545,-500.0,0.00014115,2]
[329670191,1718557861565,-500.0,0.00014115,2]
[329670192,1718557861588,-506.39539619,0.00014115,2]
[329670193,1718557861615,-500.0,0.00014115,2]
[329670194,1718557861641,-502.85306173,0.00014115,2]
[329670195,1718557861668,-500.0,0.00014115,2]
[329670196,1718557861679,-500.0,0.00014115,2]
[329670197,1718557861691,-500.0,0.00014115,2]
[329670198,1718557861704,-500.0,0.00014115,2]
[329670199,1718557861717,-519.29841364,0.00014116,2]
[329670200,1718557861752,-500.0,0.00014116,2]
[329670201,1718557861766,-500.0,0.00014116,2]
[329670202,1718557861779,-506.90361651,0.00014116,2]
[329670203,1718557861791,-500.0,0.00014116,2]
[329670204,1718557861803,-236.18024866,0.00014116,2]
[329670205,1718557861820,-520.64084309,0.00014116,2]
[329670206,1718557861837,-500.0,0.00014116,2]
[329670207,1718557861848,-513.03986068,0.00014116,2]
[329670208,1718557861868,-500.0,0.00014116,2]
[329670209,1718557861890,-442.04623323,0.00014116,2]
[329670210,1718557861905,-7212.11,0.00014387,2]
[329670211,1718557861921,-361.25092803,0.00014387,2]
[329670212,1718557861932,-1272.58,0.00014387,2]
[329670213,1718557861947,-2267.22806926,0.00014387,2]
[329670214,1718557861962,-1096.92193074,0.00014387,2]
[329670215,1718557861983,-500.0,0.00014387,2]
[329670216,1718557862001,-3700.32764314,0.00014387,2]
[329670217,1718557862044,-1088.73235686,0.00014387,2]
[329670218,1718557862067,-2299.45,0.00014387,2]
[329670219,1718557862079,-500.0,0.00014387,2]
[329670220,1718557862091,-500.0,0.00014387,2]
[329670221,1718557862123,-1716.4,0.00014387,2]
[329670222,1718557862143,-500.0,0.00014387,2]
[329670223,1718557862170,-879.93,0.00014387,2]
[329670224,1718557862186,-500.0,0.00014387,2]
[329670225,1718557862203,-500.0,0.00014387,2]
[329670226,1718557862228,-500.0,0.00014387,2]
[329670227,1718557862240,-500.0,0.00014387,2]
[329670228,1718557862253,-500.0,0.00014387,2]
[329670229,1718557862265,-15.48764314,0.00014387,2]